[Event "*** Titled Tuesday Blitz"]
[Site "Chess.com"]
[Date "2020.05.05"]
[Round "6"]
[White "Fh2411"]
[Black "Vuk2000"]
[Result "0-1"]
[WhiteElo "2457"]
[BlackElo "2637"]
[TimeControl "180+1"]
[EndTime "11:08:07 PDT"]
[Termination "Vuk2000 won by resignation"]

1. d4 {[%clk 0:01:59.8]} 1... Nf6 {[%clk 0:02:55.8]} 2. Nf3 {[%clk 0:02:00.1]}
2... e6 {[%clk 0:02:55]} 3. Bf4 {[%clk 0:02:00.4]} 3... d5 {[%clk 0:02:55]} 4.
e3 {[%clk 0:02:00.8]} 4... Bd6 {[%clk 0:02:55.4]} 5. Bg3 {[%clk 0:02:01.4]} 5...
O-O {[%clk 0:02:55.9]} 6. Nbd2 {[%clk 0:02:01.9]} 6... c5 {[%clk 0:02:56.3]} 7.
c3 {[%clk 0:02:02.4]} 7... Qc7 {[%clk 0:02:56.4]} 8. Ne5 {[%clk 0:01:55.6]} 8...
Nc6 {[%clk 0:02:55.7]} 9. f4 {[%clk 0:01:54.7]} 9... c4 {[%clk 0:02:50.4]} 10.
Be2 {[%clk 0:01:43.5]} 10... b5 {[%clk 0:02:50.2]} 11. a3 {[%clk 0:01:28.1]}
11... Bb7 {[%clk 0:02:36.2]} 12. O-O {[%clk 0:01:27.8]} 12... Ne7 {[%clk
0:02:35.5]} 13. Bh4 {[%clk 0:01:26.9]} 13... Ne8 {[%clk 0:02:17.1]} 14. Bxe7
{[%clk 0:01:24.5]} 14... Qxe7 {[%clk 0:02:16]} 15. Qe1 {[%clk 0:00:47.4]} 15...
a5 {[%clk 0:02:12.2]} 16. Qg3 {[%clk 0:00:43.6]} 16... f6 {[%clk 0:01:59.9]} 17.
Ng4 {[%clk 0:00:42.9]} 17... Nc7 {[%clk 0:01:54.7]} 18. Bf3 {[%clk 0:00:39]}
18... Kh8 {[%clk 0:01:40.4]} 19. Nf2 {[%clk 0:00:36]} 19... g5 {[%clk
0:01:36.9]} 20. Nh3 {[%clk 0:00:27.2]} 20... Rg8 {[%clk 0:01:32.3]} 21. Bg4
{[%clk 0:00:19.1]} 21... gxf4 {[%clk 0:01:17.3]} 22. exf4 {[%clk 0:00:19.3]}
22... f5 {[%clk 0:01:16.8]} 23. Ng5 {[%clk 0:00:19.6]} 23... fxg4 {[%clk
0:01:14.7]} 24. Qxg4 {[%clk 0:00:19.6]} 24... Raf8 {[%clk 0:01:08]} 25. g3
{[%clk 0:00:19]} 25... Qg7 {[%clk 0:01:03.3]} 26. Ndf3 {[%clk 0:00:16.8]} 26...
Bc8 {[%clk 0:01:00.2]} 27. Qh4 {[%clk 0:00:17.1]} 27... Be7 {[%clk 0:00:58]} 28.
Rae1 {[%clk 0:00:16.2]} 28... Ne8 {[%clk 0:00:55.5]} 29. Ne5 {[%clk 0:00:14]}
29... Nd6 {[%clk 0:00:52.9]} 30. Qh5 {[%clk 0:00:13.2]} 30... Bxg5 {[%clk
0:00:47.7]} 31. fxg5 {[%clk 0:00:14.1]} 31... Rxf1+ {[%clk 0:00:47.5]} 32. Rxf1
{[%clk 0:00:15]} 32... Qxg5 {[%clk 0:00:46.7]} 33. Qxg5 {[%clk 0:00:11]} 33...
Rxg5 {[%clk 0:00:45.9]} 34. Kg2 {[%clk 0:00:07.5]} 34... Rf5 {[%clk 0:00:45]}
35. Rxf5 {[%clk 0:00:05.2]} 35... Nxf5 {[%clk 0:00:41.3]} 36. Kf3 {[%clk
0:00:04.8]} 36... Kg7 {[%clk 0:00:40.8]} 37. Nc6 {[%clk 0:00:05.2]} 37... Bb7
{[%clk 0:00:35.6]} 38. Ne5 {[%clk 0:00:04.2]} 38... Kf6 {[%clk 0:00:35]} 39. g4
{[%clk 0:00:04.7]} 39... Nd6 {[%clk 0:00:34.9]} 40. Kf4 {[%clk 0:00:05]} 40...
Ne8 {[%clk 0:00:31.2]} 41. h4 {[%clk 0:00:05.9]} 41... Nd6 {[%clk 0:00:24.4]}
42. Nd7+ {[%clk 0:00:06.1]} 42... Ke7 {[%clk 0:00:24]} 43. Ne5 {[%clk
0:00:06.8]} 43... Bc8 {[%clk 0:00:23.6]} 44. Kg5 {[%clk 0:00:06.9]} 44... Nf7+
{[%clk 0:00:20.7]} 45. Kf4 {[%clk 0:00:06.2]} 45... Nxe5 {[%clk 0:00:13.3]} 46.
Kxe5 {[%clk 0:00:07.1]} 46... Bd7 {[%clk 0:00:13.6]} 47. g5 {[%clk 0:00:07.5]}
47... Be8 {[%clk 0:00:13.6]} 0-1

[Event "*** Titled Tuesday Blitz"]
[Site "Chess.com"]
[Date "2020.05.05"]
[Round "6"]
[White "Usurpov"]
[Black "AndriiTop"]
[Result "1-0"]
[WhiteElo "2460"]
[BlackElo "2302"]
[TimeControl "180+1"]
[EndTime "11:08:08 PDT"]
[Termination "Usurpov won by resignation"]

1. e4 {[%clk 0:03:00.9]} 1... c6 {[%clk 0:02:57.3]} 2. d4 {[%clk 0:03:00.1]}
2... d5 {[%clk 0:02:57.6]} 3. Nc3 {[%clk 0:03:00.7]} 3... dxe4 {[%clk
0:02:57.3]} 4. Nxe4 {[%clk 0:03:01.6]} 4... Nf6 {[%clk 0:02:57.7]} 5. Nxf6+
{[%clk 0:03:01.5]} 5... exf6 {[%clk 0:02:58.6]} 6. c3 {[%clk 0:03:00.3]} 6...
Bd6 {[%clk 0:02:59.5]} 7. Bd3 {[%clk 0:03:00.2]} 7... O-O {[%clk 0:02:59.8]} 8.
Qc2 {[%clk 0:03:00.7]} 8... Re8+ {[%clk 0:03:00.7]} 9. Ne2 {[%clk 0:02:59.9]}
9... h5 {[%clk 0:03:01.6]} 10. Be3 {[%clk 0:02:48.2]} 10... Nd7 {[%clk
0:02:57.9]} 11. O-O {[%clk 0:02:45]} 11... h4 {[%clk 0:02:56.8]} 12. h3 {[%clk
0:02:42.9]} 12... Nf8 {[%clk 0:02:56]} 13. Kh1 {[%clk 0:02:35.5]} 13... Be6
{[%clk 0:02:51.6]} 14. Rfe1 {[%clk 0:02:26.9]} 14... Qd7 {[%clk 0:02:50.1]} 15.
Ng1 {[%clk 0:02:25.5]} 15... g5 {[%clk 0:02:35.2]} 16. Rad1 {[%clk 0:02:16.7]}
16... Kg7 {[%clk 0:02:29]} 17. c4 {[%clk 0:02:16.1]} 17... Ng6 {[%clk
0:02:24.3]} 18. d5 {[%clk 0:02:12.6]} 18... cxd5 {[%clk 0:02:17.3]} 19. cxd5
{[%clk 0:02:13]} 19... Bxd5 {[%clk 0:01:55.3]} 20. Bxg6 {[%clk 0:02:11.9]} 20...
Bxg2+ {[%clk 0:01:56.2]} 21. Kxg2 {[%clk 0:01:48.6]} 21... fxg6 {[%clk
0:01:57.1]} 22. Qd3 {[%clk 0:01:41.6]} 22... Rad8 {[%clk 0:01:52.7]} 23. Bxa7
{[%clk 0:01:30.3]} 23... Rxe1 {[%clk 0:01:02.2]} 24. Rxe1 {[%clk 0:01:27.7]}
24... g4 {[%clk 0:01:03.1]} 25. Qe4 {[%clk 0:01:05.8]} 25... gxh3+ {[%clk
0:00:25.6]} 26. Nxh3 {[%clk 0:01:06.7]} 26... Re8 {[%clk 0:00:18.3]} 27. Qxe8
{[%clk 0:00:52.9]} 27... Qg4+ {[%clk 0:00:18.4]} 28. Kf1 {[%clk 0:00:53.1]}
28... Qxh3+ {[%clk 0:00:18.7]} 29. Ke2 {[%clk 0:00:53.3]} 29... Qg4+ {[%clk
0:00:18.7]} 30. Kd3 {[%clk 0:00:50.4]} 30... h3 {[%clk 0:00:04.5]} 31. Qe4
{[%clk 0:00:23.7]} 31... Qd7 {[%clk 0:00:04.2]} 32. Bd4 {[%clk 0:00:16.4]} 32...
h2 {[%clk 0:00:02.1]} 33. Rh1 {[%clk 0:00:10.5]} 33... Be5 {[%clk 0:00:02.6]}
34. f4 {[%clk 0:00:05.5]} 34... Bxd4 {[%clk 0:00:03]} 35. Qxd4 {[%clk
0:00:05.1]} 35... Qh3+ {[%clk 0:00:03]} 36. Kc4 {[%clk 0:00:03.7]} 36... Qe6+
{[%clk 0:00:03]} 37. Qd5 {[%clk 0:00:03.6]} 37... Qe2+ {[%clk 0:00:03.4]} 38.
Kc5 {[%clk 0:00:03.9]} 38... Qc2+ {[%clk 0:00:03.3]} 39. Qc4 {[%clk 0:00:03.7]}
39... Qf2+ {[%clk 0:00:02.9]} 40. Kb5 {[%clk 0:00:03.9]} 40... Qxf4 {[%clk
0:00:02.5]} 41. Qxf4 {[%clk 0:00:02.7]} 1-0

[Event "*** Titled Tuesday Blitz"]
[Site "Chess.com"]
[Date "2020.05.05"]
[Round "6"]
[White "Konovalova_Vera"]
[Black "archess2"]
[Result "0-1"]
[WhiteElo "2097"]
[BlackElo "2266"]
[TimeControl "180+1"]
[EndTime "11:08:08 PDT"]
[Termination "archess2 won by resignation"]

1. d4 {[%clk 0:03:00.9]} 1... d5 {[%clk 0:03:00]} 2. Nf3 {[%clk 0:03:00.6]} 2...
Nf6 {[%clk 0:02:59.8]} 3. e3 {[%clk 0:02:58.7]} 3... c5 {[%clk 0:02:59.9]} 4. b3
{[%clk 0:02:57.5]} 4... Nc6 {[%clk 0:02:59.5]} 5. Bd3 {[%clk 0:02:57.1]} 5...
cxd4 {[%clk 0:02:58.6]} 6. exd4 {[%clk 0:02:56.3]} 6... Bg4 {[%clk 0:02:58.6]}
7. Bb2 {[%clk 0:02:55.6]} 7... e6 {[%clk 0:02:58.1]} 8. Nbd2 {[%clk 0:02:55.2]}
8... Bd6 {[%clk 0:02:56.8]} 9. O-O {[%clk 0:02:54.5]} 9... O-O {[%clk
0:02:56.2]} 10. Be2 {[%clk 0:02:53.1]} 10... Rc8 {[%clk 0:02:49.5]} 11. a3
{[%clk 0:02:47.8]} 11... Bf5 {[%clk 0:02:19]} 12. c4 {[%clk 0:02:41.1]} 12...
Ne4 {[%clk 0:02:15.4]} 13. Ne5 {[%clk 0:02:31.3]} 13... Qc7 {[%clk 0:01:45]} 14.
Ndf3 {[%clk 0:02:21.2]} 14... f6 {[%clk 0:01:40.3]} 15. Nxc6 {[%clk 0:02:09]}
15... bxc6 {[%clk 0:01:37.5]} 16. h3 {[%clk 0:02:04]} 16... Be7 {[%clk
0:01:31.2]} 17. Rc1 {[%clk 0:01:58.2]} 17... Qb7 {[%clk 0:01:27.2]} 18. b4
{[%clk 0:01:53.7]} 18... a5 {[%clk 0:01:20.9]} 19. cxd5 {[%clk 0:01:48.6]} 19...
exd5 {[%clk 0:01:13.9]} 20. b5 {[%clk 0:01:26.5]} 20... cxb5 {[%clk 0:01:11.8]}
21. Qb3 {[%clk 0:01:25.5]} 21... b4 {[%clk 0:01:08.5]} 22. a4 {[%clk 0:01:07.7]}
22... Be6 {[%clk 0:01:05.3]} 23. Bd3 {[%clk 0:01:03.7]} 23... Bf7 {[%clk
0:01:02.1]} 24. Bb5 {[%clk 0:01:02]} 24... Nd6 {[%clk 0:00:54.2]} 25. Qd3 {[%clk
0:00:55.2]} 25... Bg6 {[%clk 0:00:47.3]} 26. Qe2 {[%clk 0:00:52.5]} 26... Nxb5
{[%clk 0:00:43.2]} 27. axb5 {[%clk 0:00:51.6]} 27... Rfe8 {[%clk 0:00:42.1]} 28.
Rfe1 {[%clk 0:00:44.5]} 28... Rxc1 {[%clk 0:00:34.1]} 29. Rxc1 {[%clk
0:00:41.9]} 29... Rb8 {[%clk 0:00:31.1]} 30. Nh4 {[%clk 0:00:40.2]} 30... Be8
{[%clk 0:00:20.4]} 31. Nf5 {[%clk 0:00:38.9]} 31... Bf8 {[%clk 0:00:21]} 32.
Qe6+ {[%clk 0:00:33.3]} 32... Bf7 {[%clk 0:00:20.8]} 33. Qc6 {[%clk 0:00:31.8]}
33... a4 {[%clk 0:00:21]} 34. Qxb7 {[%clk 0:00:31.3]} 34... Rxb7 {[%clk
0:00:21.5]} 35. Rc8 {[%clk 0:00:30]} 35... g6 {[%clk 0:00:22]} 36. Ne3 {[%clk
0:00:25.5]} 36... Rxb5 {[%clk 0:00:22.2]} 37. Kf1 {[%clk 0:00:22]} 37... a3
{[%clk 0:00:22.7]} 38. Bc1 {[%clk 0:00:19.7]} 38... a2 {[%clk 0:00:23]} 39. Bb2
{[%clk 0:00:19.2]} 39... Ra5 {[%clk 0:00:23.4]} 40. Ba1 {[%clk 0:00:18.5]} 40...
Kg7 {[%clk 0:00:22.9]} 41. Nd1 {[%clk 0:00:18.9]} 41... b3 {[%clk 0:00:22.8]}
42. Nb2 {[%clk 0:00:18.6]} 42... Ba3 {[%clk 0:00:23.4]} 43. Ke2 {[%clk
0:00:18.6]} 43... Bxb2 {[%clk 0:00:23.7]} 44. Bxb2 {[%clk 0:00:18.8]} 44... a1=Q
{[%clk 0:00:23.9]} 45. Bxa1 {[%clk 0:00:19.1]} 45... Rxa1 {[%clk 0:00:24.8]} 46.
Rb8 {[%clk 0:00:19.4]} 46... Ra2+ {[%clk 0:00:24.5]} 47. Ke3 {[%clk 0:00:19.1]}
47... b2 {[%clk 0:00:24.6]} 48. Kf4 {[%clk 0:00:18]} 48... g5+ {[%clk 0:00:25]}
49. Ke3 {[%clk 0:00:17.8]} 49... Bg6 {[%clk 0:00:24.9]} 50. Rb7+ {[%clk
0:00:17.2]} 50... Kh6 {[%clk 0:00:24.4]} 51. f4 {[%clk 0:00:15.4]} 51... b1=Q
{[%clk 0:00:23.7]} 0-1

[Event "*** Titled Tuesday Blitz"]
[Site "Chess.com"]
[Date "2020.05.05"]
[Round "6"]
[White "Undisputed92"]
[Black "Igor_Lysyj"]
[Result "0-1"]
[WhiteElo "2582"]
[BlackElo "2776"]
[TimeControl "180+1"]
[EndTime "11:08:09 PDT"]
[Termination "Igor_Lysyj won by resignation"]

1. e4 {[%clk 0:03:00.9]} 1... e5 {[%clk 0:02:59.2]} 2. Nf3 {[%clk 0:03:01]} 2...
Nc6 {[%clk 0:02:58.9]} 3. Bb5 {[%clk 0:03:01.5]} 3... a6 {[%clk 0:02:58.4]} 4.
Ba4 {[%clk 0:03:02]} 4... Nf6 {[%clk 0:02:58.7]} 5. O-O {[%clk 0:03:01.9]} 5...
Bc5 {[%clk 0:02:58.8]} 6. c3 {[%clk 0:02:51.3]} 6... O-O {[%clk 0:02:57.8]} 7.
d4 {[%clk 0:02:49]} 7... Ba7 {[%clk 0:02:57.6]} 8. Bg5 {[%clk 0:02:44.3]} 8...
h6 {[%clk 0:02:55.9]} 9. Bxf6 {[%clk 0:02:43.1]} 9... Qxf6 {[%clk 0:02:55]} 10.
Bxc6 {[%clk 0:02:42.3]} 10... Qxc6 {[%clk 0:02:54.8]} 11. Nxe5 {[%clk
0:02:40.5]} 11... Qxe4 {[%clk 0:02:54.5]} 12. Nd2 {[%clk 0:02:40.2]} 12... Qf5
{[%clk 0:02:53.1]} 13. Qf3 {[%clk 0:02:31.6]} 13... d6 {[%clk 0:02:51.2]} 14.
Qxf5 {[%clk 0:02:27.5]} 14... Bxf5 {[%clk 0:02:50.5]} 15. Nec4 {[%clk
0:02:26.7]} 15... Rfe8 {[%clk 0:02:43.3]} 16. Rfe1 {[%clk 0:02:26.2]} 16... Kf8
{[%clk 0:02:42.3]} 17. a4 {[%clk 0:02:22.9]} 17... Bd7 {[%clk 0:02:32.7]} 18. a5
{[%clk 0:02:20.3]} 18... f6 {[%clk 0:02:24.3]} 19. Re3 {[%clk 0:02:16.9]} 19...
d5 {[%clk 0:02:20.1]} 20. Rxe8+ {[%clk 0:02:12.8]} 20... Rxe8 {[%clk 0:02:18.9]}
21. Ne3 {[%clk 0:02:13.3]} 21... c6 {[%clk 0:02:19.2]} 22. Nb3 {[%clk
0:02:10.4]} 22... Bc8 {[%clk 0:02:17.5]} 23. Re1 {[%clk 0:02:06.3]} 23... g5
{[%clk 0:02:12.4]} 24. Nc2 {[%clk 0:02:05.2]} 24... Rxe1+ {[%clk 0:01:43.1]} 25.
Nxe1 {[%clk 0:02:06.1]} 25... Bf5 {[%clk 0:01:43.1]} 26. Nc5 {[%clk 0:02:03.7]}
26... Bc8 {[%clk 0:01:30]} 27. Nc2 {[%clk 0:01:58]} 27... Bb8 {[%clk 0:01:24.7]}
28. g3 {[%clk 0:01:54.4]} 28... Bd6 {[%clk 0:01:20.6]} 29. f3 {[%clk 0:01:52.6]}
29... Ke7 {[%clk 0:01:19.3]} 30. Kf2 {[%clk 0:01:51.9]} 30... Kd8 {[%clk
0:01:16]} 31. Nb4 {[%clk 0:01:48.9]} 31... Bc7 {[%clk 0:01:10.5]} 32. Ke3 {[%clk
0:01:38.9]} 32... Bxa5 {[%clk 0:01:03.7]} 33. Ncxa6 {[%clk 0:01:37.7]} 33... Bb6
{[%clk 0:01:02.5]} 34. Nc5 {[%clk 0:01:36.7]} 34... Ke7 {[%clk 0:01:00.7]} 35.
Nbd3 {[%clk 0:01:34.4]} 35... Kd6 {[%clk 0:00:59]} 36. b4 {[%clk 0:01:33.5]}
36... Bd8 {[%clk 0:00:58.1]} 37. g4 {[%clk 0:01:25.4]} 37... b6 {[%clk
0:00:56.5]} 38. Nb3 {[%clk 0:01:24.5]} 38... Ba6 {[%clk 0:00:55.2]} 39. Nd2
{[%clk 0:01:22.9]} 39... Ke6 {[%clk 0:00:53.5]} 40. h3 {[%clk 0:01:11.6]} 40...
Bc7 {[%clk 0:00:52.8]} 41. Nf1 {[%clk 0:01:09.9]} 41... f5 {[%clk 0:00:51.7]}
42. Nd2 {[%clk 0:01:03.7]} 42... Bd6 {[%clk 0:00:47.4]} 43. Nb1 {[%clk
0:01:00.5]} 43... Kf6 {[%clk 0:00:44.2]} 44. Nd2 {[%clk 0:00:54.4]} 44... h5
{[%clk 0:00:43.5]} 45. gxh5 {[%clk 0:00:49.9]} 45... f4+ {[%clk 0:00:42.7]} 46.
Ke2 {[%clk 0:00:49.2]} 46... Kg7 {[%clk 0:00:42.3]} 47. Nf1 {[%clk 0:00:48.6]}
47... Kh6 {[%clk 0:00:42.1]} 48. Nh2 {[%clk 0:00:48.2]} 48... Kxh5 {[%clk
0:00:41.4]} 49. Ng4 {[%clk 0:00:45.4]} 49... Kh4 {[%clk 0:00:41.3]} 50. Kd2
{[%clk 0:00:43.5]} 50... Kxh3 {[%clk 0:00:38.9]} 51. Nde5 {[%clk 0:00:40.9]}
51... Kg3 {[%clk 0:00:37.4]} 52. Nh6 {[%clk 0:00:34.7]} 52... Bc8 {[%clk
0:00:35.3]} 53. Nhf7 {[%clk 0:00:32.4]} 53... Bxe5 {[%clk 0:00:34.8]} 54. Nxe5
{[%clk 0:00:32.2]} 54... g4 {[%clk 0:00:33.4]} 55. fxg4 {[%clk 0:00:30.9]} 55...
Bxg4 {[%clk 0:00:33.4]} 0-1

[Event "*** Titled Tuesday Blitz"]
[Site "Chess.com"]
[Date "2020.05.05"]
[Round "6"]
[White "Larina_Marija"]
[Black "tamarozi99"]
[Result "1-0"]
[WhiteElo "2146"]
[BlackElo "1996"]
[TimeControl "180+1"]
[EndTime "11:08:10 PDT"]
[Termination "Larina_Marija won by checkmate"]

1. e4 {[%clk 0:03:00]} 1... c5 {[%clk 0:02:58.9]} 2. Nc3 {[%clk 0:02:59.6]} 2...
g6 {[%clk 0:02:58.4]} 3. g3 {[%clk 0:02:56.7]} 3... Bg7 {[%clk 0:02:58.5]} 4.
Bg2 {[%clk 0:02:57.1]} 4... Nc6 {[%clk 0:02:58.8]} 5. d3 {[%clk 0:02:57.2]} 5...
d6 {[%clk 0:02:58.2]} 6. Be3 {[%clk 0:02:57.1]} 6... e6 {[%clk 0:02:56.6]} 7.
Qd2 {[%clk 0:02:53.9]} 7... h6 {[%clk 0:02:53.6]} 8. Nge2 {[%clk 0:02:35.9]}
8... Nge7 {[%clk 0:02:42.8]} 9. O-O {[%clk 0:02:34.7]} 9... Nd4 {[%clk
0:02:35.7]} 10. Nd1 {[%clk 0:02:34.4]} 10... Nxe2+ {[%clk 0:02:30.6]} 11. Qxe2
{[%clk 0:02:35.3]} 11... O-O {[%clk 0:02:29.6]} 12. c3 {[%clk 0:02:35.3]} 12...
Nc6 {[%clk 0:02:28.5]} 13. Qd2 {[%clk 0:02:33.7]} 13... Kh7 {[%clk 0:02:27.4]}
14. f4 {[%clk 0:02:25.8]} 14... f5 {[%clk 0:02:15.9]} 15. Nf2 {[%clk 0:02:08.3]}
15... Qc7 {[%clk 0:02:14.7]} 16. h3 {[%clk 0:01:51.9]} 16... Rb8 {[%clk
0:02:12.4]} 17. g4 {[%clk 0:01:49.9]} 17... b5 {[%clk 0:02:03.1]} 18. Rac1
{[%clk 0:01:44.3]} 18... b4 {[%clk 0:01:49.1]} 19. d4 {[%clk 0:01:25.7]} 19...
c4 {[%clk 0:01:15.4]} 20. cxb4 {[%clk 0:01:16.2]} 20... Rxb4 {[%clk 0:01:07.2]}
21. Nd1 {[%clk 0:00:56.1]} 21... fxe4 {[%clk 0:00:40.8]} 22. Bxe4 {[%clk
0:00:51]} 22... d5 {[%clk 0:00:40.7]} 23. Bb1 {[%clk 0:00:44.2]} 23... Qb6
{[%clk 0:00:33.3]} 24. a3 {[%clk 0:00:39.1]} 24... Rb3 {[%clk 0:00:31.9]} 25.
Qc2 {[%clk 0:00:35.6]} 25... Rxe3 {[%clk 0:00:23.6]} 26. Qxg6+ {[%clk
0:00:34.6]} 26... Kg8 {[%clk 0:00:23.7]} 27. Qh7+ {[%clk 0:00:33.3]} 27... Kf7
{[%clk 0:00:23.2]} 28. Bg6+ {[%clk 0:00:21.4]} 28... Kf6 {[%clk 0:00:21.2]} 29.
g5+ {[%clk 0:00:21.1]} 29... hxg5 {[%clk 0:00:20.9]} 30. fxg5+ {[%clk
0:00:21.4]} 30... Ke7 {[%clk 0:00:17.1]} 31. Qxg7+ {[%clk 0:00:20.2]} 31... Kd6
{[%clk 0:00:17.4]} 32. Qxf8+ {[%clk 0:00:19.9]} 32... Ne7 {[%clk 0:00:16.8]} 33.
Rf7 {[%clk 0:00:14.4]} 33... Rg3+ {[%clk 0:00:16]} 34. Kh2 {[%clk 0:00:13.3]}
34... Qxd4 {[%clk 0:00:15.9]} 35. Qxe7+ {[%clk 0:00:13]} 35... Ke5 {[%clk
0:00:14.9]} 36. Qf6+ {[%clk 0:00:12.8]} 36... Kd6 {[%clk 0:00:11.9]} 37. Qxd4
{[%clk 0:00:12.3]} 37... e5 {[%clk 0:00:11.5]} 38. Qd2 {[%clk 0:00:09.7]} 38...
Rxh3+ {[%clk 0:00:11.1]} 39. Kg2 {[%clk 0:00:08.9]} 39... Rh4 {[%clk 0:00:09.9]}
40. Qb4+ {[%clk 0:00:08.5]} 40... Ke6 {[%clk 0:00:07.6]} 41. Qe7# {[%clk
0:00:09]} 1-0

[Event "*** Titled Tuesday Blitz"]
[Site "Chess.com"]
[Date "2020.05.05"]
[Round "6"]
[White "DACF2905"]
[Black "Corpescador"]
[Result "1-0"]
[WhiteElo "2204"]
[BlackElo "2382"]
[TimeControl "180+1"]
[EndTime "11:08:11 PDT"]
[Termination "DACF2905 won on time"]

1. c4 {[%clk 0:03:00.9]} 1... e5 {[%clk 0:02:59.6]} 2. g3 {[%clk 0:03:01]} 2...
Nf6 {[%clk 0:02:59.8]} 3. Nc3 {[%clk 0:03:00.9]} 3... d5 {[%clk 0:03:00.1]} 4.
cxd5 {[%clk 0:02:59.9]} 4... Nxd5 {[%clk 0:03:01]} 5. Bg2 {[%clk 0:02:59.9]}
5... Nb6 {[%clk 0:03:01.1]} 6. e3 {[%clk 0:02:59.4]} 6... g6 {[%clk 0:02:50]} 7.
Nge2 {[%clk 0:02:59.1]} 7... Nc6 {[%clk 0:02:49.4]} 8. d4 {[%clk 0:02:57.1]}
8... exd4 {[%clk 0:02:49.2]} 9. exd4 {[%clk 0:02:57.6]} 9... Bg7 {[%clk
0:02:49]} 10. d5 {[%clk 0:02:54.1]} 10... Ne5 {[%clk 0:02:43.8]} 11. O-O {[%clk
0:02:53.5]} 11... O-O {[%clk 0:02:43.8]} 12. h3 {[%clk 0:02:44]} 12... a5 {[%clk
0:02:29]} 13. b3 {[%clk 0:02:41.7]} 13... a4 {[%clk 0:02:26.9]} 14. Bb2 {[%clk
0:02:38.2]} 14... a3 {[%clk 0:02:03.9]} 15. Bc1 {[%clk 0:02:38]} 15... Bf5
{[%clk 0:02:02.5]} 16. Be3 {[%clk 0:02:35.5]} 16... Re8 {[%clk 0:01:54.2]} 17.
g4 {[%clk 0:02:33.4]} 17... Bxg4 {[%clk 0:01:42.6]} 18. hxg4 {[%clk 0:02:32.5]}
18... Nxg4 {[%clk 0:01:43.5]} 19. Bf4 {[%clk 0:02:31.7]} 19... Be5 {[%clk
0:01:14.6]} 20. Qd2 {[%clk 0:02:28]} 20... Qh4 {[%clk 0:01:01.5]} 21. Bxe5
{[%clk 0:02:18.6]} 21... Rxe5 {[%clk 0:00:55.5]} 22. Qf4 {[%clk 0:02:18.3]}
22... Rg5 {[%clk 0:00:49.4]} 23. f3 {[%clk 0:02:04.2]} 23... Re8 {[%clk
0:00:40.8]} 24. fxg4 {[%clk 0:02:02.7]} 24... f5 {[%clk 0:00:33.3]} 25. gxf5
{[%clk 0:02:00.2]} 25... Rg4 {[%clk 0:00:28.2]} 26. Qh2 {[%clk 0:01:57.2]} 26...
Qg5 {[%clk 0:00:27.9]} 27. fxg6 {[%clk 0:01:56.9]} 27... hxg6 {[%clk 0:00:21.9]}
28. Rf2 {[%clk 0:01:42.6]} 28... Nd7 {[%clk 0:00:21.2]} 29. d6 {[%clk
0:01:30.7]} 29... c6 {[%clk 0:00:20.7]} 30. Kf1 {[%clk 0:01:14.5]} 30... Ne5
{[%clk 0:00:17.5]} 31. Rd1 {[%clk 0:01:12.9]} 31... Rd8 {[%clk 0:00:16.5]} 32.
d7 {[%clk 0:01:12.3]} 32... Kg7 {[%clk 0:00:14.7]} 33. Ne4 {[%clk 0:01:07.3]}
33... Qe7 {[%clk 0:00:12.8]} 34. Rf4 {[%clk 0:00:53.2]} 34... Rxf4+ {[%clk
0:00:09.3]} 35. Qxf4 {[%clk 0:00:45.6]} 35... Nxd7 {[%clk 0:00:09.3]} 36. Kg1
{[%clk 0:00:40.8]} 36... Rf8 {[%clk 0:00:08.7]} 37. Qg5 {[%clk 0:00:40.9]} 37...
Qf7 {[%clk 0:00:07.3]} 38. Rf1 {[%clk 0:00:39.4]} 38... Qe8 {[%clk 0:00:07.1]}
39. Rxf8 {[%clk 0:00:38.5]} 39... Nxf8 {[%clk 0:00:08]} 40. Qf6+ {[%clk
0:00:37.4]} 40... Kg8 {[%clk 0:00:08.2]} 41. Nf4 {[%clk 0:00:34.3]} 41... Qd7
{[%clk 0:00:06.4]} 42. Qg5 {[%clk 0:00:22.1]} 42... Qd1+ {[%clk 0:00:05.5]} 43.
Kh2 {[%clk 0:00:21.3]} 43... Qc1 {[%clk 0:00:05.2]} 44. Nxg6 {[%clk 0:00:19.7]}
44... Qxg5 {[%clk 0:00:04.4]} 45. Nxg5 {[%clk 0:00:19.7]} 45... Nxg6 {[%clk
0:00:05.3]} 46. Ne6 {[%clk 0:00:19.8]} 46... Ne5 {[%clk 0:00:03.4]} 47. Nd8
{[%clk 0:00:19.7]} 47... Nd3 {[%clk 0:00:01.5]} 48. Nxb7 {[%clk 0:00:19.5]}
48... Nb4 {[%clk 0:00:02.4]} 49. Na5 {[%clk 0:00:13.5]} 1-0